bitfinex/quotes_ETHUSD_20250801
["timestamp","ask_amount","ask_price","bid_price","bid_amount"]
[1754030353475,38.95862288,3664.2,3664.1,0.022]
[1754030353681,38.47952288,3664.2,3664.1,0.022]
[1754030355996,0.55,3663.9,3663.4,0.4712]
[1754030356195,4.79172288,3663.8,3663.5,0.9231]
[1754030356440,0.1368,3663.6,3663.1,0.02]
[1754030356736,0.1368,3663.3,3663.1,0.02]
[1754030356947,4.79172288,3663.2,3663.1,0.02]
[1754030357642,4.53844891,3663.2,3663.1,0.925]
[1754030359128,4.7917886,3663.2,3663.1,0.4567]
[1754030359648,4.7917886,3663.2,3663.1,0.02]
[1754030360160,4.7917886,3663.2,3663.1,0.4567]
[1754030360850,5.3417886,3663.2,3663.1,0.02]
[1754030361232,5.3417886,3663.2,3663.1,0.4567]
[1754030362246,4.7917886,3663.2,3663.1,0.4567]
[1754030362614,5.3417886,3663.2,3663.1,0.02]
[1754030366152,4.7917886,3663.2,3663.1,0.925]
[1754030366355,0.5047886,3663.2,3663.1,0.925]
[1754030366659,4.53644891,3663.2,3663.1,0.925]
[1754030367544,4.53820815,3663.2,3663.1,0.925]
[1754030369732,0.25320815,3663.2,3663.1,0.925]
[1754030370352,4.53820815,3663.2,3663.1,1.0618]
[1754030370652,0.25320815,3663.2,3663.1,1.0618]
[1754030370855,4.53820815,3663.2,3663.1,1.0618]
[1754030372156,4.53820815,3663.2,3663.1,0.925]
[1754030373356,4.53822101,3663.2,3663.1,0.925]
[1754030373940,4.53822101,3663.2,3663.1,0.4567]
[1754030374259,4.53822101,3663.2,3663.1,0.925]
[1754030375028,0.1368,3663.4,3663.1,0.925]
[1754030375277,3.0,3664.0,3663.2,0.905]
[1754030375460,0.1368,3663.6,3663.2,0.905]
[1754030375761,0.1368,3663.6,3663.1,0.1588]
[1754030375762,0.25323644,3663.5,3663.3,0.905]
[1754030375953,0.25323644,3663.4,3663.1,0.1588]
[1754030376149,0.001,3664.2,3663.1,0.1588]
[1754030376352,0.1368,3663.8,3663.1,0.1588]
[1754030376662,4.53623648,3663.7,3663.2,0.905]
[1754030376858,0.25323648,3663.6,3663.3,0.905]
[1754030377058,0.25323648,3663.5,3663.1,0.1588]
[1754030377224,0.1368,3663.8,3663.4,0.905]
[1754030377428,4.78945006,3663.7,3663.5,0.4367]
[1754030377661,0.25322503,3663.6,3663.4,0.4683]
[1754030377829,0.25322503,3663.5,3663.4,0.4683]
[1754030378322,0.25322503,3663.5,3663.1,0.1588]
[1754030378527,4.53622503,3663.4,3663.1,0.1588]
[1754030378727,0.25322503,3663.3,3663.1,0.5955]
[1754030378957,4.283,3663.4,3663.1,0.1588]
[1754030379176,4.283,3663.4,3663.1,0.5955]
[1754030379460,0.25320316,3663.3,3663.2,0.4367]
[1754030379778,0.96130838,3663.3,3663.1,0.022]
[1754030380074,1.09810838,3663.2,3663.1,0.022]
[1754030382275,1.09800202,3663.2,3663.1,0.022]
[1754030383668,7.37785569,3663.2,3663.1,0.022]
[1754030383869,37.51465569,3663.2,3663.1,0.022]
[1754030384269,37.58744479,3663.2,3663.1,0.022]
[1754030384467,0.55,3662.9,3662.1,0.02]
[1754030384667,3.0,3662.5,3662.1,0.02]
[1754030384873,4.78730202,3662.4,3662.1,0.02]
[1754030385170,0.1368,3662.2,3662.1,0.4567]
[1754030385360,4.67195101,3662.2,3662.1,0.4567]
[1754030385669,4.67195101,3662.2,3662.1,0.02]
[1754030386068,4.67195101,3662.2,3662.1,0.4567]
[1754030386362,4.67195101,3662.2,3662.1,0.925]
[1754030386965,4.67195101,3662.2,3662.1,0.4567]
[1754030387167,4.67195101,3662.2,3662.1,0.02]
[1754030389271,4.67195101,3662.2,3662.1,0.4736]
[1754030389461,0.1368,3662.2,3662.1,0.9708]
[1754030389658,4.4178,3662.2,3662.1,0.9708]
[1754030390242,11.2875,3662.2,3662.1,0.9708]
[1754030390585,7.0065,3662.2,3662.1,0.9708]
[1754030390872,11.1507,3662.2,3662.1,0.4736]
[1754030391071,11.1507,3662.2,3662.1,0.02]
[1754030391243,11.1507,3662.2,3662.1,0.4736]
[1754030392160,6.8697,3662.2,3662.1,0.4736]
[1754030392365,11.1507,3662.2,3662.1,0.4736]
[1754030393544,11.1507,3662.2,3662.1,0.02]
[1754030394580,11.40269679,3662.2,3662.1,0.02]
[1754030394764,11.87409679,3662.2,3662.1,0.02]
[1754030395166,11.40269679,3662.2,3662.1,0.02]
[1754030395486,11.1497,3662.2,3662.1,0.02]
[1754030395786,11.1497,3662.2,3662.1,0.9708]
[1754030396084,7.0065,3662.2,3662.1,0.9708]
[1754030396271,11.2865,3662.2,3662.1,0.9708]
[1754030396472,7.0065,3662.2,3662.1,0.9708]
[1754030396652,11.2865,3662.2,3662.1,0.9708]
[1754030397362,7.0065,3662.2,3662.1,0.9708]
[1754030397557,11.2865,3662.2,3662.1,0.9708]
[1754030398552,11.2865,3662.2,3662.1,0.022]
[1754030399772,11.7579,3662.2,3662.1,0.022]
[1754030399976,12.01001642,3662.2,3662.1,0.022]
[1754030400320,12.01001445,3662.2,3662.1,0.022]
[1754030400788,11.5386396,3662.2,3662.1,0.022]
[1754030402190,11.5376396,3662.2,3662.1,0.022]
[1754030403054,11.5376396,3662.2,3662.1,0.4756]
[1754030403490,11.5376396,3662.2,3662.1,0.9728]
[1754030403491,11.2855,3662.2,3662.1,0.9728]
[1754030403669,11.1487,3662.2,3662.1,0.9728]
[1754030404984,6.8697,3662.2,3662.1,0.9728]
[1754030405180,11.1477,3662.2,3662.1,0.9728]
[1754030405379,6.8697,3662.2,3662.1,0.9728]
[1754030405599,11.1477,3662.2,3662.1,0.9728]
[1754030407021,11.1477,3662.2,3662.1,0.4756]
[1754030407311,11.1477,3662.2,3662.1,0.022]
[1754030407463,11.1477,3662.2,3662.1,0.4756]
[1754030408466,11.1467,3662.2,3662.1,0.9728]
[1754030409597,11.1467,3662.2,3662.1,0.4756]
[1754030409972,11.1467,3662.2,3662.1,0.9728]
[1754030413219,11.1467,3662.2,3662.1,0.4756]
[1754030413417,11.39985887,3662.2,3662.1,0.4756]
[1754030413604,11.39985887,3662.2,3662.1,0.022]
[1754030415344,11.87125887,3662.2,3662.1,0.022]
[1754030416486,12.12437909,3662.2,3662.1,0.022]
[1754030416885,11.87125887,3662.2,3662.1,0.022]
[1754030417520,15.42125887,3662.2,3662.1,0.022]
[1754030417688,15.81116565,3662.2,3662.1,0.022]
[1754030417887,15.42125887,3662.2,3662.1,0.022]
[1754030418110,15.67434069,3662.2,3662.1,0.022]
[1754030418383,45.67434069,3662.2,3662.1,0.022]
[1754030418600,45.81114069,3662.2,3662.1,0.022]
[1754030419113,45.67434069,3662.2,3662.1,0.022]
[1754030419886,45.81114069,3662.2,3662.1,0.022]
[1754030420519,48.54173978,3662.2,3662.1,0.022]
[1754030421186,48.89958849,3662.2,3662.1,0.022]
[1754030421627,48.99083978,3662.2,3662.1,0.022]
[1754030422027,46.26024069,3662.2,3662.1,0.022]
[1754030422397,48.99083978,3662.2,3662.1,0.022]
[1754030422723,49.34868849,3662.2,3662.1,0.022]
[1754030423927,3.28134491,3661.2,3661.1,0.02]
[1754030424128,44.77995887,3661.2,3661.1,0.02]
[1754030424324,45.27905887,3661.2,3661.1,0.02]
[1754030424826,45.668556,3661.2,3661.1,0.02]
[1754030424997,15.66855213,3661.2,3661.1,0.02]
[1754030425203,45.66855213,3661.2,3661.1,0.02]
[1754030425386,48.39989704,3661.2,3661.1,0.02]
[1754030426042,45.87220407,3661.2,3661.1,0.02]
[1754030426338,48.60354898,3661.2,3661.1,0.02]
[1754030427098,45.87220407,3661.2,3661.1,0.02]
[1754030427693,48.60354898,3661.2,3661.1,0.02]
[1754030428106,48.97920128,3661.2,3661.1,0.02]
[1754030428306,44.70520128,3661.2,3661.1,0.02]
[1754030428523,48.60354898,3661.2,3661.1,0.02]
[1754030429114,18.60354898,3661.2,3661.1,0.02]
[1754030429429,48.60354898,3661.2,3661.1,0.02]
[1754030431332,48.71309798,3661.2,3661.1,0.02]
[1754030431531,49.08875028,3661.2,3661.1,0.02]
[1754030433045,30.0,3660.6,3660.1,0.02]
[1754030433199,30.0,3660.4,3660.1,0.02]
[1754030433403,30.6868,3660.2,3660.1,0.02]
[1754030433634,30.6868,3660.2,3660.1,0.4948]
[1754030433855,37.9608,3660.2,3660.1,0.4948]
[1754030434050,37.9608,3660.2,3660.1,0.02]
[1754030434266,37.9608,3660.2,3660.1,0.4721]
[1754030434681,37.9608,3660.2,3660.1,0.9469]
[1754030434856,0.6089,3660.2,3660.1,0.9469]
[1754030435061,4.4108,3660.2,3660.1,0.9469]
[1754030436165,4.274,3660.2,3660.1,0.02]
[1754030436339,37.824,3660.2,3660.1,0.02]
[1754030437742,33.55,3660.2,3660.1,0.9469]
[1754030438136,37.823,3660.2,3660.1,0.9469]
[1754030438543,37.823,3660.2,3660.1,0.02]
[1754030439527,33.55,3660.2,3660.1,0.02]
[1754030439752,7.274,3660.2,3660.1,0.9469]
[1754030440631,7.274,3660.2,3660.1,0.02]
[1754030440854,7.274,3660.2,3660.1,0.9469]
[1754030441051,3.0,3660.2,3660.1,0.9469]
[1754030441260,7.273,3660.2,3660.1,0.9469]
[1754030441458,7.823,3660.2,3660.1,0.02]
[1754030441929,7.823,3660.2,3660.1,0.9469]
[1754030442685,7.273,3660.2,3660.1,0.9469]
[1754030443053,3.0,3660.2,3660.1,0.9489]
[1754030443444,7.273,3660.2,3660.1,0.9489]
[1754030445594,0.55,3660.8,3660.1,0.9489]
[1754030445772,0.55,3660.8,3660.2,0.9269]
[1754030445773,0.55,3660.6,3660.2,0.9269]
[1754030446092,3.0,3660.4,3660.3,0.9269]
[1754030446391,0.25163944,3660.4,3660.3,0.9269]
[1754030446594,4.66043944,3660.4,3660.3,0.9269]
[1754030446802,0.38843944,3660.4,3660.3,0.9269]
[1754030446960,4.66043944,3660.4,3660.3,0.9269]
[1754030447294,4.66068921,3660.4,3660.3,0.9269]
[1754030447480,0.38868921,3660.4,3660.3,0.9269]
[1754030447671,0.1368,3660.8,3660.3,0.9269]
[1754030447874,4.52389639,3660.7,3660.4,0.9297]
[1754030448060,4.272,3660.6,3660.5,0.9297]
[1754030448260,6.7038,3661.2,3660.5,1.0665]
[1754030448474,7.77580787,3661.1,3660.6,0.9297]
[1754030448672,0.25190123,3661.0,3660.7,1.0665]
[1754030448871,0.001,3661.2,3660.1,0.022]
[1754030448872,0.001,3661.2,3661.0,0.1368]
[1754030449094,0.001,3661.2,3660.5,8.07803984]
[1754030449294,0.001,3661.2,3661.1,0.1368]
[1754030449499,4.273,3661.2,3661.1,0.1368]
[1754030449687,4.525063,3661.2,3661.1,1.0665]
[1754030450295,4.77738764,3661.2,3661.1,1.0665]
[1754030450803,0.50537007,3661.2,3661.1,1.0665]
[1754030451097,4.5243072,3661.2,3661.1,1.0665]
[1754030452164,0.001,3661.2,3661.1,1.0665]
[1754030452361,4.271,3661.2,3661.1,1.0665]
[1754030452667,4.52336484,3661.2,3661.1,1.0665]
[1754030452861,4.271,3661.2,3661.1,1.0665]
[1754030453077,4.271,3661.2,3661.1,0.9297]
[1754030453078,4.523443,3661.2,3661.1,0.9297]
[1754030453276,4.271,3661.2,3661.1,0.9297]
[1754030456802,0.001,3661.2,3661.1,0.9297]
[1754030457007,4.27,3661.2,3661.1,1.0665]
[1754030458886,4.269,3661.2,3661.1,1.0665]
[1754030461077,4.269,3661.2,3661.1,0.1368]
[1754030461379,4.269,3661.2,3661.1,1.0665]
[1754030461574,0.001,3661.2,3661.1,1.0665]
[1754030461779,4.269,3661.2,3661.1,1.0665]
[1754030463677,0.001,3661.2,3661.1,1.0665]
[1754030463885,6.86,3661.5,3661.2,3.0]
[1754030464084,6.86,3661.5,3661.3,0.9570127]
[1754030464278,6.86,3661.5,3661.3,0.9297]
[1754030464523,6.86,3661.5,3661.4,0.9297]
[1754030465692,6.86,3661.5,3660.9,11.83656714]
[1754030465919,6.86,3661.5,3661.4,0.9297]
[1754030466984,6.861,3661.5,3661.4,0.9297]
[1754030467183,11.127,3661.5,3661.1,0.9297]
[1754030467380,11.127,3661.5,3660.9,0.820949]
[1754030467381,11.6257,3661.5,3660.9,0.820949]
[1754030468033,11.6257,3661.5,3660.7,0.4567]
[1754030468237,11.6257,3661.5,3660.9,0.473]
[1754030469349,11.6257,3661.5,3660.7,0.9297]
[1754030469736,11.6257,3661.5,3660.8,0.473]
[1754030471239,0.4987,3661.4,3660.5,0.4567]
[1754030471551,6.861,3661.5,3660.6,0.473]
[1754030471767,4.265,3661.3,3660.3,0.4587]
[1754030471975,4.265,3661.3,3660.4,0.473]
[1754030472272,4.265,3661.3,3660.5,0.4567]
[1754030472784,4.265,3661.3,3661.0,8.06891313]
[1754030473091,4.265,3661.2,3661.1,0.9297]
[1754030473441,4.265,3661.2,3661.0,8.06891313]
[1754030473641,4.265,3661.2,3661.1,8.06891313]
[1754030473971,4.265,3661.2,3661.1,8.99861313]
[1754030474164,4.265,3661.2,3661.1,9.13541313]
[1754030474667,4.265,3661.2,3661.1,8.20571313]
[1754030475540,4.265,3661.2,3660.4,0.473]
[1754030475694,4.7036,3661.2,3660.4,0.473]
[1754030475852,0.4987,3661.1,3660.3,8.07091313]
[1754030476055,4.7026,3661.0,3660.3,8.07091313]
[1754030476266,0.4987,3660.9,3660.3,0.002]
[1754030478004,0.438,3660.8,3660.3,0.002]
[1754030478201,4.264,3660.7,3660.3,0.002]
[1754030478424,5.1577,3660.7,3660.3,0.002]
[1754030478707,3.8937,3660.6,3660.3,0.002]
[1754030479054,0.8937,3660.5,3660.3,0.002]
[1754030479286,7.264,3660.4,3660.3,0.002]
[1754030479555,8.1577,3660.4,3660.3,0.002]
[1754030481005,8.41057479,3660.4,3660.3,0.002]
[1754030482656,4.14657479,3660.4,3660.3,0.002]
[1754030483183,8.41057479,3660.4,3660.3,0.002]
[1754030483496,7.97257479,3660.4,3660.3,0.002]
[1754030483860,3.25287479,3660.4,3660.3,0.002]
[1754030484197,0.4557,3660.6,3660.3,0.002]
[1754030484381,0.25251672,3660.5,3660.3,0.002]
[1754030484583,4.264,3660.4,3660.3,0.002]
[1754030484773,0.8937,3661.0,3660.3,0.4762]
[1754030484975,3.0,3660.8,3660.3,0.9523]
[1754030485159,0.25251099,3660.7,3660.3,0.9523]
[1754030485360,4.264,3660.6,3660.3,0.9523]
[1754030485594,0.4557,3660.8,3660.3,0.9523]
[1754030485770,4.264,3660.7,3660.3,0.9523]
[1754030486292,0.5925,3660.6,3660.3,0.002]
[1754030486659,0.8937,3660.5,3660.3,0.002]
[1754030486881,4.4008,3660.4,3660.3,0.002]
[1754030487195,8.54695366,3660.4,3660.3,0.002]
[1754030488087,4.28295366,3660.4,3660.3,0.002]
[1754030488389,8.2945,3660.4,3660.3,0.002]
[1754030489404,7.8565,3660.4,3660.3,0.002]
[1754030489964,7.4008,3660.4,3660.3,0.002]
[1754030490416,7.8555,3660.4,3660.3,0.002]
[1754030490622,8.2935,3660.4,3660.3,0.002]
[1754030491082,7.8555,3660.4,3660.3,0.002]
[1754030492001,8.54570921,3660.4,3660.3,0.002]
[1754030492977,8.2935,3660.4,3660.3,0.002]
[1754030493907,8.54562199,3660.4,3660.3,0.002]
[1754030494990,7.8555,3660.4,3660.3,0.002]
[1754030496317,7.3998,3660.4,3660.3,0.002]
[1754030497697,3.1368,3660.4,3660.3,0.002]
[1754030497902,7.3998,3660.4,3660.3,0.002]
[1754030498810,14.2617,3660.4,3660.3,0.002]
[1754030499239,9.9987,3660.4,3660.3,0.4781]
[1754030499538,14.2607,3660.4,3660.3,0.9523]
[1754030499717,14.2607,3660.4,3660.3,0.002]
[1754030500443,14.96895268,3660.4,3660.3,0.002]
[1754030500655,15.40695268,3660.4,3660.3,0.002]
[1754030500851,14.96895268,3660.4,3660.3,0.002]
[1754030501057,14.7164,3660.4,3660.3,0.002]
[1754030501255,14.2607,3660.4,3660.3,0.002]
[1754030501409,9.9987,3660.4,3660.3,0.002]
[1754030501608,14.2607,3660.4,3660.3,0.002]
[1754030501806,14.7164,3660.4,3660.3,0.002]
[1754030502269,15.40704857,3660.4,3660.3,0.002]
[1754030503439,14.96904857,3660.4,3660.3,0.002]
[1754030504249,14.96904857,3660.4,3658.6,2.73327363]
[1754030504250,3.0,3660.3,3659.0,4.1650743]
[1754030504458,0.1368,3660.0,3659.4,0.1368]
[1754030504611,4.261,3659.9,3659.4,0.1368]
[1754030505638,4.7167,3659.9,3659.4,0.1368]
[1754030506139,4.261,3659.9,3659.4,0.1368]
[1754030506382,4.261,3659.9,3659.4,1.0871]
[1754030506683,4.7128,3659.9,3659.4,1.0871]
[1754030507256,0.25329692,3659.8,3659.4,1.0871]
[1754030507472,4.261,3659.7,3659.4,1.0871]
[1754030508034,4.261,3659.7,3659.4,0.611]
[1754030508438,4.261,3659.7,3659.4,1.0891]
[1754030508689,4.261,3659.7,3659.5,0.9375]
[1754030508841,4.261,3659.7,3659.4,8.21471166]
[1754030509045,4.261,3659.7,3659.5,0.9375]
[1754030509269,0.1368,3660.0,3659.6,0.9375]
[1754030509476,0.25351577,3659.9,3659.7,0.9375]
[1754030509674,0.25351577,3659.8,3659.4,8.21471166]
[1754030509879,4.26,3659.7,3659.4,8.07791166]
[1754030510254,4.26,3659.7,3659.6,0.1368]
[1754030510681,0.1368,3660.2,3659.6,0.1368]
[1754030510852,4.76718686,3660.1,3659.7,0.9375]
[1754030511054,0.25359346,3660.0,3659.7,0.9375]
[1754030511261,0.25359346,3659.9,3659.8,0.4594]
[1754030511682,0.25359346,3659.9,3659.6,0.1388]
[1754030511988,4.51359346,3659.8,3659.6,0.002]
[1754030512174,4.26,3659.7,3659.6,0.002]
[1754030512381,4.7118,3659.7,3659.6,0.002]
[1754030512684,5.4171616,3659.7,3659.6,0.002]
[1754030514270,4.9653616,3659.7,3659.6,0.002]
[1754030514557,5.4171616,3659.7,3659.6,0.002]
[1754030514977,4.9653616,3659.7,3659.6,0.002]
[1754030516849,0.2535616,3659.7,3659.6,0.002]
[1754030517057,4.5125616,3659.7,3659.6,0.002]
[1754030517496,4.259,3659.7,3659.6,0.4614]
[1754030517658,4.3958,3659.7,3659.6,0.4614]
[1754030518301,4.64936184,3659.7,3659.6,0.002]
[1754030518484,5.10116184,3659.7,3659.6,0.002]
[1754030518883,5.55296184,3659.7,3659.6,0.002]
[1754030519379,5.10116184,3659.7,3659.6,0.002]
[1754030520089,5.55296184,3659.7,3659.6,0.002]
[1754030520628,5.10116184,3659.7,3659.6,0.002]
[1754030520961,5.55296184,3659.7,3659.6,0.002]
[1754030521386,8.80651439,3659.7,3659.6,0.002]
[1754030521605,8.80650188,3659.7,3659.6,0.002]
[1754030521959,8.94476969,3659.7,3659.6,0.002]
[1754030522174,8.80650188,3659.7,3659.6,0.002]
[1754030523162,8.93950728,3659.7,3659.6,0.002]
[1754030523899,7.90190188,3659.7,3659.6,0.002]
[1754030524101,8.80450188,3659.7,3659.6,0.002]
[1754030524435,8.55095094,3659.7,3659.6,0.002]
[1754030524726,8.8044078,3659.7,3659.6,0.002]
[1754030524928,38.8044078,3659.7,3659.6,0.002]
[1754030527407,38.80407862,3659.7,3659.6,0.002]
[1754030528095,37.90047862,3659.7,3659.6,0.002]
[1754030528298,7.90047862,3659.7,3659.6,0.002]
[1754030528643,3.64347862,3659.7,3659.6,0.002]
[1754030528990,0.64347862,3659.7,3659.6,0.4614]
[1754030529195,4.64713931,3659.7,3659.6,0.9395]
[1754030530434,4.64614847,3659.7,3659.6,0.9395]
[1754030530596,4.64614882,3659.7,3659.6,0.9395]
[1754030531531,0.39014882,3659.7,3659.6,0.9395]
[1754030531929,4.64614882,3659.7,3659.6,0.9395]
[1754030532330,0.4518,3660.7,3659.6,0.9395]
[1754030532331,0.1368,3660.0,3659.6,9.01741166]
[1754030532539,0.02,3660.9,3659.9,8.07791166]
[1754030532736,0.50683922,3660.8,3660.6,8.07791166]
[1754030533034,4.76283922,3660.7,3659.7,0.9375]
[1754030533204,0.50683922,3660.6,3659.7,0.9375]
[1754030533406,5.21463922,3660.5,3660.1,0.1368]
[1754030533632,5.21463922,3660.5,3659.7,0.4594]
[1754030533633,0.1368,3659.8,3659.7,0.4594]
[1754030534055,4.3928,3659.8,3659.7,0.4594]
[1754030534538,4.3928,3659.8,3659.6,0.002]
[1754030534698,0.001,3659.7,3659.6,0.002]
[1754030536124,0.4528,3659.7,3659.6,0.002]
[1754030537548,0.70618036,3659.7,3659.6,0.002]
[1754030537713,4.256,3659.7,3659.6,0.002]
[1754030537899,4.255,3659.7,3659.6,0.002]
[1754030540502,4.255,3659.7,3659.6,0.4744]
[1754030541638,4.255,3659.7,3659.6,0.002]
[1754030542040,5.1945,3659.7,3659.6,0.002]
[1754030542340,5.44791666,3659.7,3659.6,0.002]
[1754030543123,5.70131047,3659.7,3659.6,0.002]
[1754030543708,39.25131047,3659.7,3659.6,0.002]
[1754030543924,5.70031047,3659.7,3659.6,0.002]
[1754030544110,1.19391666,3659.7,3659.6,0.002]
[1754030544321,0.25441666,3659.7,3659.6,0.002]
[1754030544521,0.001,3659.7,3659.6,0.9291]
[1754030544850,4.254,3659.7,3659.6,0.9291]
[1754030545143,4.254,3659.7,3659.6,0.002]
[1754030546121,4.727,3659.7,3659.6,0.002]
[1754030546521,8.23365455,3659.7,3659.6,0.002]
[1754030546737,7.98033167,3659.7,3659.6,0.002]
[1754030546911,8.23366337,3659.7,3659.6,0.002]
[1754030547112,8.70016337,3659.7,3659.6,0.002]
[1754030550527,38.70016337,3659.7,3659.6,0.002]
[1754030551558,39.25016337,3659.7,3659.6,0.002]
[1754030551930,41.98262777,3659.7,3659.6,0.002]
[1754030552319,11.98262777,3659.7,3659.6,0.002]
[1754030552515,41.98262777,3659.7,3659.6,0.002]
[1754030553756,42.11942777,3659.7,3659.6,0.002]
[1754030554531,42.22900577,3659.7,3659.6,0.002]
[1754030556573,32.73276309,3659.3,3659.2,0.002]
[1754030556776,40.49142646,3659.3,3659.2,0.002]
[1754030556945,41.98092646,3659.3,3659.2,0.002]
[1754030557289,42.59012646,3659.3,3659.2,0.002]
[1754030557439,12.59012646,3659.3,3659.2,0.002]
[1754030557857,8.33812646,3659.3,3659.2,0.002]
[1754030558072,35.81165028,3659.3,3659.2,0.002]
[1754030558451,40.06265028,3659.3,3659.2,0.002]
[1754030558931,40.06365028,3659.3,3659.2,0.002]
[1754030559486,38.54441337,3659.3,3659.2,0.002]
[1754030559784,40.06365028,3659.3,3659.2,0.002]
[1754030560537,39.59125028,3659.3,3659.2,0.002]
[1754030560939,34.59508691,3659.3,3659.2,0.002]
[1754030561353,37.32785,3659.3,3659.2,0.002]
[1754030561550,33.54235,3659.3,3659.2,0.002]
[1754030561758,37.79335,3659.3,3659.2,0.002]
[1754030562405,44.79335,3659.3,3659.2,0.002]
[1754030562959,48.34335,3659.3,3659.2,0.002]
[1754030563290,48.34985,3659.3,3659.2,0.002]
[1754030563488,18.81635,3659.3,3659.2,0.002]
[1754030563691,48.81635,3659.3,3659.2,0.002]
[1754030564874,41.81635,3659.3,3659.2,0.002]
[1754030566761,30.0,3658.9,3658.3,0.4965]
[1754030566962,30.0,3658.7,3658.1,0.02]
[1754030567162,30.0,3658.5,3658.1,0.02]
[1754030567461,4.25,3658.4,3658.1,0.5165]
[1754030567686,4.25,3658.3,3658.1,0.5165]
[1754030567903,4.25,3658.3,3658.1,0.9576]
[1754030568080,4.25,3658.3,3658.1,0.02]
[1754030568407,33.0,3658.2,3658.1,0.02]
[1754030568562,35.73358482,3658.2,3658.1,0.02]
[1754030568759,37.359611,3658.2,3658.1,0.02]
[1754030568964,37.25,3658.2,3658.1,0.02]
[1754030569192,33.0,3658.2,3658.1,0.02]
[1754030569396,37.25,3658.2,3658.1,0.02]
[1754030569597,40.90958482,3658.2,3658.1,0.02]
[1754030569758,40.90958482,3658.2,3657.5,0.004]
[1754030569759,2.7338628,3657.9,3657.5,0.004]
[1754030569959,30.0,3657.6,3657.5,0.004]
[1754030570262,30.0,3657.6,3656.0,0.008]
[1754030570263,30.0,3657.4,3656.0,0.008]
[1754030570461,30.0,3657.4,3656.6,0.9376]
[1754030570462,3.0,3657.4,3656.6,0.9376]
[1754030570661,0.55,3657.9,3656.7,0.9376]
[1754030570662,1.0056,3657.9,3656.7,0.9376]
[1754030570894,1.0056,3657.9,3656.0,0.008]
[1754030570895,30.0,3657.6,3656.8,0.9376]
[1754030571105,30.0,3657.6,3656.0,0.008]
[1754030571106,3.0,3657.5,3656.9,0.9376]
[1754030571262,4.25,3657.5,3656.9,0.4411]
[1754030571469,30.0,3657.8,3657.0,0.4965]
[1754030571705,3.0,3657.5,3657.1,0.3911]
[1754030571911,4.25,3657.4,3657.2,0.4965]
[1754030572209,4.25,3657.4,3656.0,0.008]
[1754030572210,30.0,3656.7,3656.0,0.008]
[1754030572501,3.0,3656.5,3656.0,0.008]
[1754030572664,4.278,3656.4,3656.1,0.5165]
[1754030572860,4.278,3656.4,3656.1,0.02]
[1754030573065,6.28508013,3656.2,3656.1,0.02]
[1754030573267,40.56308013,3656.2,3656.1,0.02]
[1754030573502,33.0,3656.2,3656.1,0.02]
[1754030573707,38.03983904,3656.2,3656.1,0.02]
[1754030573872,41.70091917,3656.2,3656.1,0.02]
[1754030574074,34.93529297,3656.2,3656.1,0.02]
[1754030574305,39.23502088,3656.2,3656.1,0.02]
[1754030574515,3.55,3656.1,3655.5,0.1593477]
[1754030574666,5.73546735,3655.7,3655.5,0.1593477]
[1754030574871,37.305,3655.6,3655.5,0.1593477]
[1754030575302,40.04052905,3655.6,3655.5,0.1593477]
[1754030575813,41.51652905,3655.6,3655.5,0.1593477]
[1754030576188,41.51652905,3655.6,3655.1,0.02]
[1754030576189,30.926,3655.6,3655.1,0.02]
[1754030576374,0.20783904,3656.2,3654.1,0.5165]
[1754030576375,30.0,3655.4,3654.1,0.5165]
[1754030576577,3.0,3655.1,3654.1,0.9576]
[1754030576807,0.55,3655.5,3654.2,0.9376]
[1754030576808,4.331,3655.0,3654.2,0.9376]
[1754030577109,0.1368,3654.3,3654.1,0.02]
[1754030577311,4.332,3654.2,3654.1,0.02]
[1754030577517,0.1368,3654.3,3654.1,0.02]
[1754030577673,4.332,3654.2,3654.1,0.02]
[1754030578113,4.333,3654.2,3654.1,0.02]
[1754030578287,0.1368,3654.3,3654.1,0.02]
[1754030578611,4.334,3654.2,3654.1,0.02]
[1754030579115,0.1368,3654.3,3654.1,0.02]
[1754030579278,4.333,3654.2,3654.1,0.02]
[1754030579811,34.333,3654.2,3654.1,0.02]
[1754030580308,4.332,3654.2,3654.1,0.02]
[1754030580493,0.1368,3654.3,3654.1,0.02]
[1754030580695,0.1368,3654.3,3654.1,0.5165]
[1754030580955,30.0,3655.0,3654.2,0.9376]
[1754030581126,0.4965,3654.5,3654.3,0.4965]
[1754030581330,0.1368,3654.3,3654.1,0.02]
[1754030581636,34.332,3654.2,3654.1,0.02]
[1754030581957,35.257,3654.2,3654.1,0.02]
[1754030582160,4.332,3654.2,3654.1,0.02]
[1754030582364,34.332,3654.2,3654.1,0.02]
[1754030582661,11.54457708,3654.2,3654.1,0.02]
[1754030582862,41.54457708,3654.2,3654.1,0.02]
[1754030583034,33.926,3654.2,3654.1,0.02]
[1754030583359,33.926,3654.2,3653.2,0.01]
[1754030583360,30.0,3654.0,3653.2,0.01]
[1754030583533,4.333,3653.9,3653.3,0.4965]